fUSD/lending_fUSD_20250511
["ID","MTS","AMOUNT","RATE_DAILY","PERIOD"]
[360688775,1746929462419,-400.0,0.00019995,2]
[360688776,1746929462428,-400.0,0.00019995,2]
[360688777,1746929462440,-400.0,0.00019995,2]
[360688778,1746929462449,-370.20584156,0.00019995,2]
[360688779,1746929462460,-400.0,0.00019995,2]
[360688780,1746929462469,-400.0,0.00019995,2]
[360688781,1746929462479,-400.0,0.00019995,2]
[360688782,1746929462490,-432.91,0.00019995,2]
[360688783,1746929462503,-400.0,0.00019995,2]
[360688784,1746929462512,-268.48323794,0.00019995,2]
[360688785,1746929462522,-400.0,0.00019995,2]
[360688786,1746929462531,-406.16968731,0.00019995,2]
[360688787,1746929462541,-400.0,0.00019995,2]
[360688788,1746929462551,-486.0,0.00019995,2]
[360688789,1746929462560,-400.0,0.00019995,2]
[360688790,1746929462569,-400.0,0.00019995,2]
[360688791,1746929462579,-402.59594909,0.00019995,2]
[360688792,1746929462589,-400.0,0.00019995,2]
[360688793,1746929462599,-400.0,0.00019995,2]
[360688794,1746929462608,-400.0,0.00019995,2]
[360688795,1746929462618,-400.0,0.00019995,2]
[360688796,1746929462628,-400.0,0.00019995,2]
[360688797,1746929462638,-400.0,0.00019995,2]
[360688798,1746929462648,-445.56713245,0.00019995,2]
[360688799,1746929462658,-355.71788887,0.00019995,2]
[360688800,1746929462668,-445.93147687,0.00019995,2]
[360688801,1746929462678,-468.12777082,0.00019995,2]
[360688802,1746929462690,-433.91770881,0.00019995,2]
[360688803,1746929462700,-454.73154321,0.00019995,2]
[360688804,1746929462710,-400.0,0.00019995,2]
[360688805,1746929462720,-427.12604301,0.00019995,2]
[360688806,1746929462730,-430.14658856,0.00019995,2]
[360688807,1746929462739,-400.0,0.00019995,2]
[360688808,1746929462749,-400.0,0.00019995,2]
[360688809,1746929462759,-400.0,0.00019995,2]
[360688810,1746929462769,-444.37539053,0.00019995,2]
[360688811,1746929462778,-400.0,0.00019995,2]
[360688812,1746929462787,-432.66321315,0.00019995,2]
[360688813,1746929462799,-400.0,0.00019995,2]
[360688814,1746929462810,-400.0,0.00019995,2]
[360688815,1746929462820,-434.87902506,0.00019995,2]
[360688816,1746929462829,-442.99742726,0.00019995,2]
[360688817,1746929462839,-440.24800796,0.00019995,2]
[360688818,1746929462848,-464.33111156,0.00019995,2]
[360688819,1746929462858,-586.11,0.00019995,2]
[360688820,1746929462867,-470.70389125,0.00019995,2]
[360688821,1746929462877,-411.24,0.00019995,2]
[360688822,1746929462887,-151.0,0.00019995,2]
[360688823,1746929462898,-400.0,0.00019995,2]
[360688824,1746929462908,-435.87606007,0.00019995,2]
[360688825,1746929462918,-400.0,0.00019995,2]
[360688826,1746929462928,-400.0,0.00019995,2]
[360688827,1746929462939,-400.0,0.00019995,2]
[360688828,1746929462949,-400.0,0.00019995,2]
[360688829,1746929462959,-189.73843484,0.00019995,2]
[360688830,1746929462969,-531.91,0.00019995,2]
[360688831,1746929462978,-500.0,0.00019995,2]
[360688832,1746929462987,-400.0,0.00019995,2]
[360688833,1746929462997,-240.034157,0.00019995,2]
[360688834,1746929463006,-400.0,0.00019995,2]
[360688835,1746929463015,-1374.67,0.00019995,2]
[360688836,1746929463025,-240.034157,0.00019995,2]
[360688837,1746929463035,-239.27042029,0.00019995,2]
[360688838,1746929463044,-400.0,0.00019995,2]
[360688839,1746929463054,-495.77,0.00019995,2]
[360688840,1746929463064,-554.07,0.00019995,2]
[360688841,1746929463075,-400.0,0.00019995,2]
[360688842,1746929463085,-400.0,0.00019995,2]
[360688843,1746929463095,-400.0,0.00019995,2]
[360688844,1746929463105,-400.0,0.00019995,2]
[360688845,1746929463115,-400.0,0.00019995,2]
[360688846,1746929463125,-512.94,0.00019995,2]
[360688847,1746929463134,-400.0,0.00019995,2]
[360688848,1746929463144,-499.54,0.00019995,2]
[360688849,1746929463154,-184.99266375,0.00019995,2]
[360688850,1746929463165,-1215.92,0.00019995,2]
[360688851,1746929463175,-400.0,0.00019995,2]
[360688852,1746929463185,-151.77108959,0.00019995,2]
[360688853,1746929463197,-400.0,0.00019995,2]
[360688854,1746929463207,-400.0,0.00019995,2]
[360688855,1746929463217,-271.80475412,0.00019995,2]
[360688856,1746929463227,-151.0,0.00019995,2]
[360688857,1746929463237,-400.0,0.00019995,2]
[360688858,1746929463247,-151.0,0.00019995,2]
[360688859,1746929463257,-400.0,0.00019995,2]
[360688860,1746929463266,-466.24243091,0.00019995,2]
[360688861,1746929463276,-400.0,0.00019995,2]
[360688862,1746929463286,-400.0,0.00019995,2]
[360688863,1746929463296,-400.0,0.00019995,2]
[360688864,1746929463306,-400.0,0.00019995,2]
[360688865,1746929463316,-400.0,0.00019995,2]
[360688866,1746929463326,-930.29,0.00019995,2]
[360688867,1746929463336,-400.0,0.00019995,2]
[360688868,1746929463347,-400.0,0.00019995,2]
[360688869,1746929463358,-330.12331161,0.00019995,2]
[360688870,1746929463367,-22278.8,0.00019995,2]
[360688871,1746929463377,-151.0,0.00019995,2]
[360688872,1746929463387,-151.0,0.00019995,2]
[360688873,1746929463397,-400.0,0.00019995,2]
[360688874,1746929463407,-400.0,0.00019995,2]
[360688875,1746929463417,-400.0,0.00019995,2]
[360688876,1746929463427,-165.20529087,0.00019995,2]
[360688877,1746929463436,-469.07614753,0.00019995,2]
[360688878,1746929463447,-342.28,0.00019995,2]
[360688879,1746929463457,-883.22,0.00019995,2]
[360688880,1746929463466,-400.0,0.00019995,2]
[360688881,1746929463476,-400.0,0.00019995,2]
[360688882,1746929463487,-400.0,0.00019995,2]
[360688883,1746929463499,-400.0,0.00019995,2]
[360688884,1746929463509,-459.74,0.00019995,2]
[360688885,1746929463518,-400.0,0.00019995,2]
[360688886,1746929463528,-400.0,0.00019995,2]
[360688887,1746929463538,-400.0,0.00019995,2]
[360688888,1746929463548,-400.0,0.00019995,2]
[360688889,1746929463557,-400.0,0.00019995,2]
[360688890,1746929463567,-400.0,0.00019995,2]
[360688891,1746929463579,-151.0,0.00019995,2]
[360688892,1746929463588,-400.0,0.00019995,2]
[360688893,1746929463598,-151.0,0.00019995,2]
[360688894,1746929463608,-455.54,0.00019995,2]
[360688895,1746929463618,-455.54,0.00019995,2]
[360688896,1746929463628,-455.54,0.00019995,2]
[360688897,1746929463638,-455.54,0.00019995,2]
[360688898,1746929463648,-400.0,0.00019995,2]
[360688899,1746929463658,-481.41,0.00019995,2]
[360688900,1746929463668,-400.0,0.00019995,2]
[360688901,1746929463677,-400.0,0.00019995,2]
[360688902,1746929463687,-400.0,0.00019995,2]
[360688903,1746929463696,-442.28102954,0.00019995,2]
[360688904,1746929463706,-400.0,0.00019995,2]
[360688905,1746929463716,-400.0,0.00019995,2]
[360688906,1746929463725,-400.0,0.00019995,2]
[360688907,1746929463735,-400.0,0.00019995,2]
[360688908,1746929463744,-400.0,0.00019995,2]
[360688909,1746929463753,-400.0,0.00019995,2]
[360688910,1746929463764,-400.0,0.00019995,2]
[360688911,1746929463773,-166.378399,0.00019995,2]
[360688912,1746929463784,-830.57,0.00019995,2]
[360688913,1746929463793,-166.378399,0.00019995,2]
[360688914,1746929463803,-830.57,0.00019995,2]
[360688915,1746929463812,-830.57,0.00019995,2]
[360688916,1746929463823,-400.0,0.00019995,2]
[360688917,1746929463832,-400.0,0.00019995,2]
[360688918,1746929463842,-400.0,0.00019995,2]
[360688919,1746929463852,-400.0,0.00019995,2]
[360688920,1746929463861,-400.0,0.00019995,2]
[360688921,1746929463872,-400.0,0.00019995,2]
[360688922,1746929463882,-166.378399,0.00019995,2]
[360688923,1746929463892,-400.0,0.00019995,2]
[360688924,1746929463902,-166.378399,0.00019995,2]
[360688925,1746929463912,-400.0,0.00019995,2]
[360688926,1746929463921,-400.0,0.00019995,2]
[360688927,1746929463931,-438.41414692,0.00019995,2]
[360688928,1746929463943,-400.0,0.00019995,2]
[360688929,1746929463953,-400.0,0.00019995,2]
[360688930,1746929463963,-400.0,0.00019995,2]
[360688931,1746929463974,-400.0,0.00019995,2]
[360688932,1746929463985,-400.0,0.00019995,2]
[360688933,1746929463995,-194.79609501,0.00019995,2]
[360688934,1746929464006,-510.14,0.00019995,2]
[360688935,1746929464016,-400.0,0.00019995,2]
[360688936,1746929464027,-400.0,0.00019995,2]
[360688937,1746929464037,-400.0,0.00019995,2]
[360688938,1746929464047,-400.0,0.00019995,2]
[360688939,1746929464057,-400.0,0.00019995,2]
[360688940,1746929464067,-400.0,0.00019995,2]
[360688941,1746929464078,-400.0,0.00019995,2]
[360688942,1746929464089,-400.0,0.00019995,2]
[360688943,1746929464099,-400.0,0.00019995,2]
[360688944,1746929464109,-469.57,0.00019995,2]
[360688945,1746929464119,-400.0,0.00019995,2]
[360688946,1746929464129,-188.56275187,0.00019995,2]
[360688947,1746929464139,-400.0,0.00019995,2]
[360688948,1746929464149,-272.79434089,0.00019995,2]
[360688949,1746929464159,-464.54,0.00019995,2]
[360688950,1746929464168,-400.0,0.00019995,2]
[360688951,1746929464178,-400.0,0.00019995,2]
[360688952,1746929464189,-400.0,0.00019995,2]
[360688953,1746929464200,-400.0,0.00019995,2]
[360688954,1746929464209,-400.0,0.00019995,2]
[360688955,1746929464219,-400.0,0.00019995,2]
[360688956,1746929464229,-400.0,0.00019995,2]
[360688957,1746929464239,-400.0,0.00019995,2]
[360688958,1746929464249,-400.0,0.00019995,2]
[360688959,1746929464261,-1799.822809,0.00019995,2]
[360688960,1746929464271,-1799.822809,0.00019995,2]
[360688961,1746929464282,-672.34,0.00019995,2]
[360688962,1746929464292,-494.69,0.00019995,2]
[360688963,1746929464303,-1799.822809,0.00019995,2]
[360688964,1746929464312,-1799.822809,0.00019995,2]
[360688965,1746929464323,-298.42498614,0.00019995,2]
[360688966,1746929464337,-400.0,0.00019995,2]
[360688967,1746929464347,-400.0,0.00019995,2]
[360688968,1746929464357,-400.0,0.00019995,2]
[360688969,1746929464367,-400.0,0.00019995,2]
[360688970,1746929464377,-400.0,0.00019995,2]
[360688971,1746929464387,-400.0,0.00019995,2]
[360688972,1746929464397,-422.467261,0.00019995,2]
[360688973,1746929464406,-422.467261,0.00019995,2]
[360688974,1746929464416,-400.0,0.00019995,2]
[360688975,1746929464425,-400.0,0.00019995,2]
[360688976,1746929464435,-400.0,0.00019995,2]
[360688977,1746929464448,-400.0,0.00019995,2]
[360688978,1746929464457,-151.0,0.00019995,2]
[360688979,1746929464468,-400.0,0.00019995,2]
[360688980,1746929464481,-422.467261,0.00019995,2]
[360688981,1746929464492,-1677.61,0.00019995,2]
[360688982,1746929464503,-422.467261,0.00019995,2]
[360688983,1746929464513,-497.73,0.00019995,2]
[360688984,1746929464523,-400.0,0.00019995,2]
[360688985,1746929464532,-151.0,0.00019995,2]
[360688986,1746929464542,-592.98,0.00019995,2]
[360688987,1746929464551,-592.98,0.00019995,2]
[360688988,1746929464561,-592.98,0.00019995,2]
[360688989,1746929464575,-400.0,0.00019995,2]
[360688990,1746929464585,-400.0,0.00019995,2]
[360688991,1746929464595,-400.0,0.00019995,2]
[360688992,1746929464605,-400.0,0.00019995,2]
[360688993,1746929464615,-400.0,0.00019995,2]
[360688994,1746929464626,-400.0,0.00019995,2]
[360688995,1746929464636,-400.0,0.00019995,2]
[360688996,1746929464646,-400.0,0.00019995,2]
[360688997,1746929464657,-400.0,0.00019995,2]
[360688998,1746929464667,-171.34100953,0.00019995,2]
[360688999,1746929464677,-151.0,0.00019995,2]
[360689000,1746929464686,-151.0,0.00019995,2]
[360689001,1746929464698,-1969.27,0.00019995,2]
[360689002,1746929464707,-400.0,0.00019995,2]
[360689003,1746929464718,-260.10293991,0.00019995,2]
[360689004,1746929464728,-400.0,0.00019995,2]
[360689005,1746929464737,-655.17,0.00019995,2]
[360689006,1746929464747,-655.17,0.00019995,2]
[360689007,1746929464757,-655.17,0.00019995,2]
[360689008,1746929464767,-655.17,0.00019995,2]
[360689009,1746929464778,-404.74353669,0.00019995,2]
[360689010,1746929464788,-400.0,0.00019995,2]
[360689011,1746929464798,-319.00900533,0.00019995,2]
[360689012,1746929464807,-400.0,0.00019995,2]
[360689013,1746929464817,-930.04,0.00019995,2]
[360689014,1746929464826,-157.61402763,0.00019995,2]
[360689015,1746929464835,-400.0,0.00019995,2]
[360689016,1746929464845,-542.69,0.00019995,2]
[360689017,1746929464855,-436.82,0.00019995,2]
[360689018,1746929464865,-436.82,0.00019995,2]
[360689019,1746929464874,-436.82,0.00019995,2]
[360689020,1746929464883,-436.82,0.00019995,2]
[360689021,1746929464893,-3740.71,0.00019995,2]
[360689022,1746929464902,-553.01,0.00019995,2]
[360689023,1746929464912,-553.01,0.00019995,2]
[360689024,1746929464922,-553.01,0.00019995,2]
[360689025,1746929464931,-451.14557061,0.00019995,2]
[360689026,1746929464940,-425.05272507,0.00019996,2]
[360689027,1746929464949,-470.05,0.00019996,2]
[360689028,1746929464959,-425.92129707,0.00019996,2]
[360689029,1746929464968,-400.0,0.00019996,2]
[360689030,1746929464978,-425.02105589,0.00019996,2]
[360689031,1746929464987,-400.0,0.00019996,2]
[360689032,1746929464997,-499.31,0.00019996,2]
[360689033,1746929465007,-516.83431488,0.00019996,2]
[360689034,1746929465016,-400.0,0.00019996,2]
[360689035,1746929465026,-300.0,0.00019996,2]
[360689036,1746929465035,-198.54000382,0.00019996,2]
[360689037,1746929465046,-400.0,0.00019996,2]
[360689038,1746929465055,-400.0,0.00019996,2]
[360689039,1746929465066,-400.0,0.00019996,2]
[360689040,1746929465075,-151.0,0.00019996,2]
[360689041,1746929465085,-401.83455741,0.00019996,2]
[360689042,1746929465095,-400.0,0.00019996,2]
[360689043,1746929465104,-419.58,0.00019996,2]
[360689044,1746929465114,-151.0,0.00019996,2]
[360689045,1746929465125,-400.0,0.00019996,2]
[360689046,1746929465135,-400.0,0.00019996,2]
[360689047,1746929465144,-217.42347496,0.00019996,2]
[360689048,1746929465154,-400.0,0.00019996,2]
[360689049,1746929465164,-532.79435132,0.00019996,2]
[360689050,1746929465174,-151.0,0.00019996,2]
[360689051,1746929465183,-151.0,0.00019996,2]
[360689052,1746929465194,-400.0,0.00019996,2]
[360689053,1746929465203,-400.0,0.00019996,2]
[360689054,1746929465212,-400.0,0.00019996,2]
[360689055,1746929465222,-162.21471926,0.00019996,2]
[360689056,1746929465231,-558.53,0.00019996,2]
[360689057,1746929465240,-558.53,0.00019996,2]
[360689058,1746929465251,-558.53,0.00019996,2]
[360689059,1746929465260,-558.53,0.00019996,2]
[360689060,1746929465269,-558.53,0.00019996,2]
[360689061,1746929465279,-400.0,0.00019996,2]
[360689062,1746929465288,-400.0,0.00019996,2]
[360689063,1746929465298,-400.0,0.00019996,2]
[360689064,1746929465307,-400.0,0.00019996,2]
[360689065,1746929465316,-214.68782014,0.00019996,2]
[360689066,1746929465326,-400.0,0.00019996,2]
[360689067,1746929465335,-400.0,0.00019996,2]
[360689068,1746929465344,-400.0,0.00019996,2]
[360689069,1746929465353,-400.0,0.00019996,2]
[360689070,1746929465362,-400.0,0.00019996,2]
[360689071,1746929465372,-400.0,0.00019996,2]
[360689072,1746929465381,-400.0,0.00019996,2]
[360689073,1746929465390,-400.0,0.00019996,2]
[360689074,1746929465399,-379.36565204,0.00019996,2]
[360689075,1746929465409,-400.0,0.00019996,2]
[360689076,1746929465418,-400.0,0.00019996,2]
[360689077,1746929465427,-439.81026894,0.00019996,2]
[360689078,1746929465436,-400.0,0.00019996,2]
[360689079,1746929465447,-400.0,0.00019996,2]
[360689080,1746929465457,-400.0,0.00019996,2]
[360689081,1746929465466,-400.0,0.00019996,2]
[360689082,1746929465475,-400.0,0.00019996,2]
[360689083,1746929465484,-400.0,0.00019996,2]
[360689084,1746929465496,-400.0,0.00019996,2]
[360689085,1746929465506,-460.73375045,0.00019996,2]
[360689086,1746929465515,-400.0,0.00019996,2]
[360689087,1746929465525,-492.36,0.00019996,2]
[360689088,1746929465534,-400.0,0.00019996,2]
[360689089,1746929465544,-400.0,0.00019996,2]
[360689090,1746929465553,-151.0,0.00019996,2]
[360689091,1746929465563,-400.0,0.00019996,2]
[360689092,1746929465574,-400.0,0.00019996,2]
[360689093,1746929465583,-400.0,0.00019996,2]
[360689094,1746929465592,-400.0,0.00019996,2]
[360689095,1746929465601,-400.0,0.00019996,2]
[360689096,1746929465610,-438.80268278,0.00019996,2]
[360689097,1746929465619,-400.0,0.00019996,2]
[360689098,1746929465628,-263.87002448,0.00019996,2]
[360689099,1746929465637,-294.956931,0.00019996,2]
[360689100,1746929465646,-400.0,0.00019996,2]
[360689101,1746929465656,-400.0,0.00019996,2]
[360689102,1746929465666,-400.0,0.00019996,2]
[360689103,1746929465675,-400.0,0.00019996,2]
[360689104,1746929465684,-400.0,0.00019996,2]
[360689105,1746929465698,-400.0,0.00019996,2]
[360689106,1746929465707,-400.0,0.00019996,2]
[360689107,1746929465716,-400.0,0.00019996,2]
[360689108,1746929465726,-169.92296267,0.00019996,2]
[360689109,1746929465735,-156.38294119,0.00019996,2]
[360689110,1746929465906,-413.25684516,0.00019996,2]
[360689111,1746929465917,-151.0,0.00019996,2]
[360689112,1746929465926,-400.0,0.00019996,2]
[360689113,1746929465936,-435.2713251,0.00019996,2]
[360689114,1746929465953,-468.62838516,0.00019996,2]
[360689115,1746929465963,-400.0,0.00019996,2]
[360689116,1746929465973,-400.0,0.00019996,2]
[360689117,1746929465982,-400.0,0.00019996,2]
[360689118,1746929465992,-400.0,0.00019996,2]
[360689119,1746929466001,-400.0,0.00019996,2]
[360689120,1746929466011,-274.57,0.00019996,2]
[360689121,1746929466020,-400.0,0.00019996,2]
[360689122,1746929466031,-400.0,0.00019996,2]
[360689123,1746929466040,-400.0,0.00019996,2]
[360689124,1746929466049,-400.0,0.00019996,2]
[360689125,1746929466059,-400.0,0.00019996,2]
[360689126,1746929466068,-400.0,0.00019996,2]
[360689127,1746929466078,-400.0,0.00019996,2]
[360689128,1746929466087,-400.0,0.00019996,2]
[360689129,1746929466097,-246.98514311,0.00019996,2]
[360689130,1746929466106,-429.75,0.00019996,2]
[360689131,1746929466117,-429.75,0.00019996,2]
[360689132,1746929466126,-429.75,0.00019996,2]
[360689133,1746929466136,-429.75,0.00019996,2]
[360689134,1746929466147,-400.0,0.00019996,2]
[360689135,1746929466157,-400.0,0.00019996,2]
[360689136,1746929466167,-400.0,0.00019996,2]
[360689137,1746929466176,-400.0,0.00019996,2]
[360689138,1746929466186,-400.0,0.00019996,2]
[360689139,1746929466199,-400.0,0.00019996,2]
[360689140,1746929466208,-400.0,0.00019996,2]
[360689141,1746929466217,-400.0,0.00019996,2]
[360689142,1746929466227,-429.27514554,0.00019996,2]
[360689143,1746929466236,-151.0,0.00019996,2]
[360689144,1746929466246,-400.0,0.00019996,2]
[360689145,1746929466255,-193.68367791,0.00019996,2]
[360689146,1746929466265,-400.0,0.00019996,2]
[360689147,1746929466274,-432.96127995,0.00019996,2]
[360689148,1746929466284,-400.0,0.00019996,2]
[360689149,1746929466293,-408.51495994,0.00019996,2]
[360689150,1746929466303,-400.0,0.00019996,2]
[360689151,1746929466312,-429.31438113,0.00019996,2]
[360689152,1746929466322,-412.30140273,0.00019996,2]
[360689153,1746929466331,-400.0,0.00019996,2]
[360689154,1746929466341,-400.0,0.00019996,2]
[360689155,1746929466350,-400.0,0.00019996,2]
[360689156,1746929466359,-400.0,0.00019996,2]
[360689157,1746929466369,-400.0,0.00019996,2]
[360689158,1746929466378,-400.0,0.00019996,2]
[360689159,1746929466387,-400.0,0.00019996,2]
[360689160,1746929466396,-433.98155126,0.00019996,2]
[360689161,1746929466407,-400.0,0.00019996,2]
[360689162,1746929466416,-472.53551619,0.00019996,2]
[360689163,1746929466425,-432.91,0.00019996,2]
[360689164,1746929466436,-400.0,0.00019996,2]
[360689165,1746929466450,-400.0,0.00019996,2]
[360689166,1746929466460,-434.77745642,0.00019996,2]
[360689167,1746929466469,-400.0,0.00019996,2]
[360689168,1746929466479,-400.0,0.00019996,2]
[360689169,1746929466490,-486.0,0.00019996,2]
[360689170,1746929466503,-400.0,0.00019996,2]
[360689171,1746929466514,-400.0,0.00019996,2]
[360689172,1746929466523,-400.0,0.00019996,2]
[360689173,1746929466533,-400.0,0.00019996,2]
[360689174,1746929466543,-237.9541865,0.00019996,2]
[360689175,1746929466552,-433.08760212,0.00019996,2]
[360689176,1746929466562,-487.90590921,0.00019996,2]
[360689177,1746929466574,-400.0,0.00019996,2]
[360689178,1746929466583,-400.0,0.00019996,2]
[360689179,1746929466593,-400.0,0.00019996,2]
[360689180,1746929466603,-401.95498554,0.00019996,2]
[360689181,1746929466612,-222.220129,0.00019996,2]
[360689182,1746929466621,-317.56391192,0.00019996,2]
[360689183,1746929466630,-400.0,0.00019996,2]
[360689184,1746929466640,-400.0,0.00019996,2]
[360689185,1746929466649,-400.0,0.00019996,2]
[360689186,1746929466659,-400.0,0.00019996,2]
[360689187,1746929466668,-400.0,0.00019996,2]
[360689188,1746929466677,-586.11,0.00019996,2]
[360689189,1746929466687,-411.24,0.00019996,2]
[360689190,1746929466699,-151.0,0.00019996,2]
[360689191,1746929466708,-151.0,0.00019996,2]
[360689192,1746929466717,-151.0,0.00019996,2]
[360689193,1746929466727,-241.48411712,0.00019996,2]
[360689194,1746929466736,-400.0,0.00019996,2]
[360689195,1746929466746,-400.0,0.00019996,2]
[360689196,1746929466755,-400.0,0.00019996,2]
[360689197,1746929466765,-400.0,0.00019996,2]
[360689198,1746929466774,-262.748854,0.00019996,2]
[360689199,1746929466783,-262.748854,0.00019996,2]
[360689200,1746929466793,-500.0,0.00019996,2]
[360689201,1746929466802,-151.0,0.00019996,2]
[360689202,1746929466811,-400.0,0.00019996,2]
[360689203,1746929466821,-240.034157,0.00019996,2]
[360689204,1746929466830,-400.0,0.00019996,2]
[360689205,1746929466839,-1374.67,0.00019996,2]
[360689206,1746929466849,-240.034157,0.00019996,2]
[360689207,1746929466858,-400.0,0.00019996,2]
[360689208,1746929466867,-495.77,0.00019996,2]
[360689209,1746929466877,-554.07,0.00019996,2]
[360689210,1746929466887,-400.0,0.00019996,2]
[360689211,1746929466896,-400.0,0.00019996,2]
[360689212,1746929466905,-400.0,0.00019996,2]
[360689213,1746929466915,-400.0,0.00019996,2]
[360689214,1746929466925,-400.0,0.00019996,2]
[360689215,1746929466935,-512.94,0.00019996,2]
[360689216,1746929466948,-400.0,0.00019996,2]
[360689217,1746929466957,-499.54,0.00019996,2]
[360689218,1746929466967,-499.54,0.00019996,2]
[360689219,1746929466976,-499.54,0.00019996,2]
[360689220,1746929466986,-1215.92,0.00019996,2]
[360689221,1746929466997,-400.0,0.00019996,2]
[360689222,1746929467007,-400.0,0.00019996,2]
[360689223,1746929467016,-400.0,0.00019996,2]
[360689224,1746929467026,-400.0,0.00019996,2]
[360689225,1746929467036,-400.0,0.00019996,2]
[360689226,1746929467047,-151.0,0.00019996,2]
[360689227,1746929467056,-400.0,0.00019996,2]
[360689228,1746929467066,-400.0,0.00019996,2]
[360689229,1746929467075,-335.41402225,0.00019996,2]
[360689230,1746929467085,-400.0,0.00019996,2]
[360689231,1746929467094,-400.0,0.00019996,2]
[360689232,1746929467105,-930.29,0.00019996,2]
[360689233,1746929467114,-400.0,0.00019996,2]
[360689234,1746929467124,-930.29,0.00019996,2]
[360689235,1746929467133,-930.29,0.00019996,2]
[360689236,1746929467143,-190.81780687,0.00019996,2]
[360689237,1746929467154,-22278.8,0.00019996,2]
[360689238,1746929467164,-151.0,0.00019996,2]
[360689239,1746929467173,-175.13968327,0.00019996,2]
[360689240,1746929467183,-883.22,0.00019996,2]
[360689241,1746929467199,-400.0,0.00019996,2]
[360689242,1746929467209,-400.0,0.00019996,2]
[360689243,1746929467219,-459.74,0.00019996,2]
[360689244,1746929467228,-459.74,0.00019996,2]
[360689245,1746929467238,-459.74,0.00019996,2]
[360689246,1746929467247,-337.49863317,0.00019996,2]
[360689247,1746929467258,-312.85,0.00019996,2]
[360689248,1746929467268,-400.0,0.00019996,2]
[360689249,1746929467278,-400.0,0.00019996,2]
[360689250,1746929467288,-151.0,0.00019996,2]
[360689251,1746929467298,-455.54,0.00019996,2]
[360689252,1746929467307,-400.0,0.00019996,2]
[360689253,1746929467317,-481.41,0.00019996,2]
[360689254,1746929467326,-481.41,0.00019996,2]
[360689255,1746929467335,-400.0,0.00019996,2]
[360689256,1746929467344,-481.41,0.00019996,2]
[360689257,1746929467353,-400.0,0.00019996,2]
[360689258,1746929467362,-427.75504495,0.00019996,2]
[360689259,1746929467372,-400.0,0.00019996,2]
[360689260,1746929467382,-400.0,0.00019996,2]
[360689261,1746929467393,-400.0,0.00019996,2]
[360689262,1746929467403,-400.0,0.00019996,2]
[360689263,1746929467412,-400.0,0.00019996,2]
[360689264,1746929467421,-238.7474357,0.00019996,2]
[360689265,1746929467431,-166.378399,0.00019996,2]
[360689266,1746929467441,-830.57,0.00019996,2]
[360689267,1746929467451,-400.0,0.00019996,2]
[360689268,1746929467460,-424.85,0.00019996,2]
[360689269,1746929467469,-400.0,0.00019996,2]
[360689270,1746929467478,-400.0,0.00019996,2]
[360689271,1746929467492,-540.1774114,0.00019996,2]
[360689272,1746929467502,-166.378399,0.00019996,2]
[360689273,1746929467511,-400.0,0.00019996,2]
[360689274,1746929467521,-358.76,0.00019996,2]